[Event "Early-Titled-Tuesday-Blitz-February-20-2024"]
[Site "Chess.com"]
[Date "2024.02.20"]
[Round "5"]
[White "shailendrabajpai"]
[Black "ChainedDowntohell"]
[Result "0-1"]
[WhiteElo "2415"]
[BlackElo "2563"]
[TimeControl "180+1"]
[EndTime "8:55:29 PST"]
[Termination "ChainedDowntohell won on time"]

1. e4 {[%clk 0:02:58]} 1... e6 {[%clk 0:02:57.8]} 2. d4 {[%clk 0:02:52.2]} 2...
a6 {[%clk 0:02:57]} 3. c4 {[%clk 0:02:49.2]} 3... d5 {[%clk 0:02:55.3]} 4. cxd5
{[%clk 0:02:48.7]} 4... exd5 {[%clk 0:02:55.6]} 5. e5 {[%clk 0:02:49.3]} 5... c5
{[%clk 0:02:50.6]} 6. f4 {[%clk 0:02:47.6]} 6... Nc6 {[%clk 0:02:48.6]} 7. Nf3
{[%clk 0:02:46.9]} 7... Bg4 {[%clk 0:02:48.4]} 8. dxc5 {[%clk 0:02:12.7]} 8...
Bxc5 {[%clk 0:02:47.5]} 9. Nc3 {[%clk 0:01:55.2]} 9... Nge7 {[%clk 0:02:47.5]}
10. Be2 {[%clk 0:01:28.8]} 10... O-O {[%clk 0:02:45.3]} 11. h3 {[%clk
0:01:19.2]} 11... Bxf3 {[%clk 0:02:42.5]} 12. Bxf3 {[%clk 0:01:18.8]} 12... Nf5
{[%clk 0:02:43.2]} 13. h4 {[%clk 0:00:44.1]} 13... Qb6 {[%clk 0:01:46.7]} 14. g4
{[%clk 0:00:20.7]} 14... Bf2+ {[%clk 0:01:42.8]} 15. Kf1 {[%clk 0:00:21]} 15...
Ng3+ {[%clk 0:01:39]} 16. Kg2 {[%clk 0:00:21.3]} 16... Nxh1 {[%clk 0:01:37.8]}
17. Nxd5 {[%clk 0:00:21.3]} 17... Qd4 {[%clk 0:01:32]} 18. Qxh1 {[%clk
0:00:15.3]} 18... Rfd8 {[%clk 0:01:22.3]} 19. Qf1 {[%clk 0:00:13.2]} 19... Bxh4
{[%clk 0:01:16]} 20. Be3 {[%clk 0:00:13.3]} 20... Qxb2+ {[%clk 0:01:14]} 21. Kh3
{[%clk 0:00:13.6]} 21... Ne7 {[%clk 0:01:06.7]} 22. Rb1 {[%clk 0:00:12.3]} 22...
Qxa2 {[%clk 0:01:01.4]} 23. Nxe7+ {[%clk 0:00:08.3]} 23... Bxe7 {[%clk
0:01:02.3]} 24. Rxb7 {[%clk 0:00:08.3]} 24... Qa3 {[%clk 0:00:53.6]} 25. Qe2
{[%clk 0:00:05.5]} 25... Rac8 {[%clk 0:00:47.4]} 26. e6 {[%clk 0:00:03.7]} 26...
Rc3 {[%clk 0:00:44]} 27. exf7+ {[%clk 0:00:03.5]} 27... Kf8 {[%clk 0:00:43.1]}
28. Rxe7 {[%clk 0:00:02.8]} 28... Qxe7 {[%clk 0:00:38.8]} 0-1

[Event "Early-Titled-Tuesday-Blitz-February-20-2024"]
[Site "Chess.com"]
[Date "2024.02.20"]
[Round "5"]
[White "AlexPapasimakopoulos"]
[Black "Grande_Strategia"]
[Result "1-0"]
[WhiteElo "2759"]
[BlackElo "2522"]
[TimeControl "180+1"]
[EndTime "8:55:30 PST"]
[Termination "AlexPapasimakopoulos won by resignation"]

1. d4 {[%clk 0:03:00.9]} 1... f6 {[%clk 0:03:00.9]} 2. e4 {[%clk 0:03:00.6]}
2... Kf7 {[%clk 0:03:01.2]} 3. f4 {[%clk 0:03:00.6]} 3... g6 {[%clk 0:02:59.5]}
4. Nf3 {[%clk 0:03:01.1]} 4... Bg7 {[%clk 0:02:59.9]} 5. Bc4+ {[%clk 0:03:01.1]}
5... e6 {[%clk 0:03:00.2]} 6. d5 {[%clk 0:03:01.8]} 6... Ke8 {[%clk 0:03:00.1]}
7. Nc3 {[%clk 0:02:57.9]} 7... c6 {[%clk 0:02:58.7]} 8. Be3 {[%clk 0:02:56.2]}
8... b5 {[%clk 0:02:40.4]} 9. Bb3 {[%clk 0:02:53.3]} 9... a5 {[%clk 0:02:40.6]}
10. dxe6 {[%clk 0:02:48.6]} 10... dxe6 {[%clk 0:02:40.5]} 11. Qxd8+ {[%clk
0:02:48.8]} 11... Kxd8 {[%clk 0:02:41.4]} 12. O-O-O+ {[%clk 0:02:42]} 12... Ke8
{[%clk 0:02:41.8]} 13. Nd4 {[%clk 0:02:36.1]} 13... e5 {[%clk 0:02:29.6]} 14.
fxe5 {[%clk 0:02:35]} 14... fxe5 {[%clk 0:02:24.4]} 15. Ne6 {[%clk 0:02:28.1]}
15... Bxe6 {[%clk 0:02:18.2]} 16. Bxe6 {[%clk 0:02:29]} 16... Bh6 {[%clk
0:02:17.6]} 17. Bxh6 {[%clk 0:02:23.8]} 17... Nxh6 {[%clk 0:02:18.5]} 18. Rhf1
{[%clk 0:02:22.2]} 18... Ke7 {[%clk 0:02:14.4]} 19. Bh3 {[%clk 0:02:22]} 19...
g5 {[%clk 0:02:00]} 20. Bf5 {[%clk 0:02:19.9]} 20... Ra7 {[%clk 0:01:35.7]} 21.
a4 {[%clk 0:02:13.3]} 21... b4 {[%clk 0:01:32.8]} 22. Ne2 {[%clk 0:02:13.7]}
22... Na6 {[%clk 0:01:29.1]} 23. b3 {[%clk 0:02:05.8]} 23... Nc5 {[%clk
0:01:19.9]} 24. Ng3 {[%clk 0:02:06.4]} 24... Raa8 {[%clk 0:01:11.1]} 25. Rf3
{[%clk 0:01:50.6]} 25... Rad8 {[%clk 0:01:06.1]} 26. Rh1 {[%clk 0:01:48.3]}
26... Rdf8 {[%clk 0:00:33.9]} 27. h4 {[%clk 0:01:45.8]} 27... g4 {[%clk
0:00:31.1]} 28. Re3 {[%clk 0:01:41.9]} 28... Ne6 {[%clk 0:00:31]} 29. Bxe6
{[%clk 0:01:32.5]} 29... Kxe6 {[%clk 0:00:31.9]} 30. Rd1 {[%clk 0:01:28.5]}
30... Rd8 {[%clk 0:00:31.9]} 31. Red3 {[%clk 0:01:05.3]} 31... Rxd3 {[%clk
0:00:31.9]} 32. cxd3 {[%clk 0:01:05.1]} 32... Rf8 {[%clk 0:00:25.1]} 33. Nf1
{[%clk 0:01:05.5]} 33... Nf7 {[%clk 0:00:18.6]} 34. Ne3 {[%clk 0:01:04.6]} 34...
Nd6 {[%clk 0:00:18.7]} 35. Nxg4 {[%clk 0:00:59.3]} 35... Rg8 {[%clk 0:00:15.5]}
36. Ne3 {[%clk 0:00:58.7]} 36... Rg3 {[%clk 0:00:14.4]} 37. Kd2 {[%clk 0:00:59]}
37... Nb7 {[%clk 0:00:07.2]} 38. Rc1 {[%clk 0:00:56.8]} 38... Kd6 {[%clk
0:00:06.8]} 39. Nf5+ {[%clk 0:00:56.8]} 1-0

[Event "Early-Titled-Tuesday-Blitz-February-20-2024"]
[Site "Chess.com"]
[Date "2024.02.20"]
[Round "5"]
[White "ckgchess"]
[Black "vladgoncharov"]
[Result "1-0"]
[WhiteElo "2866"]
[BlackElo "2646"]
[TimeControl "180+1"]
[EndTime "8:55:31 PST"]
[Termination "ckgchess won by resignation"]

1. e4 {[%clk 0:03:00.9]} 1... e6 {[%clk 0:02:59]} 2. d4 {[%clk 0:03:01]} 2... d5
{[%clk 0:02:58.3]} 3. Nd2 {[%clk 0:03:01.6]} 3... c5 {[%clk 0:02:57.3]} 4. Ngf3
{[%clk 0:03:01.8]} 4... Nf6 {[%clk 0:02:55.5]} 5. exd5 {[%clk 0:02:52.6]} 5...
Qxd5 {[%clk 0:02:54.3]} 6. Bc4 {[%clk 0:02:50.1]} 6... Qd8 {[%clk 0:02:54.1]} 7.
O-O {[%clk 0:02:49.9]} 7... cxd4 {[%clk 0:02:54.2]} 8. Nb3 {[%clk 0:02:50.5]}
8... Nc6 {[%clk 0:02:54.3]} 9. Qe2 {[%clk 0:02:50.8]} 9... a6 {[%clk 0:02:46.3]}
10. Rd1 {[%clk 0:02:50.5]} 10... Qc7 {[%clk 0:02:39.7]} 11. Nbxd4 {[%clk
0:02:47.7]} 11... Nxd4 {[%clk 0:02:39.1]} 12. Rxd4 {[%clk 0:02:47.9]} 12... b5
{[%clk 0:02:29.8]} 13. Bd3 {[%clk 0:02:40.5]} 13... Bc5 {[%clk 0:02:21.8]} 14.
Rh4 {[%clk 0:02:40.3]} 14... Bb7 {[%clk 0:02:17]} 15. Bg5 {[%clk 0:02:35.6]}
15... h6 {[%clk 0:02:06.9]} 16. a4 {[%clk 0:02:31.8]} 16... b4 {[%clk
0:01:43.8]} 17. a5 {[%clk 0:02:22.3]} 17... Nd5 {[%clk 0:01:38]} 18. Re1 {[%clk
0:02:07.1]} 18... Be7 {[%clk 0:01:26.1]} 19. Bxe7 {[%clk 0:02:03.6]} 19... Qxe7
{[%clk 0:01:24.9]} 20. Rg4 {[%clk 0:01:54.7]} 20... O-O {[%clk 0:01:07.1]} 21.
Qe5 {[%clk 0:01:54.3]} 21... f6 {[%clk 0:00:48]} 22. Qg3 {[%clk 0:01:30.2]}
22... f5 {[%clk 0:00:37.1]} 23. Rg6 {[%clk 0:01:25.8]} 23... Rf6 {[%clk
0:00:36.6]} 24. Rxf6 {[%clk 0:01:13.2]} 24... Qxf6 {[%clk 0:00:34.8]} 25. Qd6
{[%clk 0:01:13.9]} 25... Re8 {[%clk 0:00:18]} 26. b3 {[%clk 0:00:48.3]} 26...
Qc3 {[%clk 0:00:16.3]} 27. Rxe6 {[%clk 0:00:44.2]} 27... Qa1+ {[%clk 0:00:13.8]}
28. Bf1 {[%clk 0:00:44.5]} 28... Rf8 {[%clk 0:00:12.3]} 29. Re1 {[%clk
0:00:38.4]} 29... Qc3 {[%clk 0:00:11.1]} 30. Bc4 {[%clk 0:00:38.3]} 30... Kh8
{[%clk 0:00:07.2]} 31. Qxf8+ {[%clk 0:00:38.2]} 1-0

[Event "Early-Titled-Tuesday-Blitz-February-20-2024"]
[Site "Chess.com"]
[Date "2024.02.20"]
[Round "5"]
[White "angelgab3"]
[Black "seasidesunset"]
[Result "1-0"]
[WhiteElo "2769"]
[BlackElo "2275"]
[TimeControl "180+1"]
[EndTime "8:55:34 PST"]
[Termination "angelgab3 won by checkmate"]

1. e4 {[%clk 0:03:00.9]} 1... e6 {[%clk 0:03:00.2]} 2. d4 {[%clk 0:03:00.9]}
2... d5 {[%clk 0:03:01]} 3. Nc3 {[%clk 0:03:01.5]} 3... Nf6 {[%clk 0:03:00.9]}
4. e5 {[%clk 0:03:01.8]} 4... Nfd7 {[%clk 0:03:01.3]} 5. f4 {[%clk 0:03:02.5]}
5... c5 {[%clk 0:03:02]} 6. Nf3 {[%clk 0:03:03.2]} 6... Nc6 {[%clk 0:03:02.8]}
7. Be3 {[%clk 0:03:03.8]} 7... Qb6 {[%clk 0:03:03.5]} 8. Na4 {[%clk 0:03:03.9]}
8... Qa5+ {[%clk 0:03:01.8]} 9. c3 {[%clk 0:03:04.3]} 9... b6 {[%clk 0:03:01.9]}
10. a3 {[%clk 0:02:46.8]} 10... c4 {[%clk 0:02:58.2]} 11. b4 {[%clk 0:02:43.7]}
11... cxb3 {[%clk 0:02:57.9]} 12. Qxb3 {[%clk 0:02:43.7]} 12... Ba6 {[%clk
0:02:50.7]} 13. Nb2 {[%clk 0:02:34.7]} 13... Bxf1 {[%clk 0:02:46.6]} 14. Kxf1
{[%clk 0:02:33.9]} 14... Qa6+ {[%clk 0:02:45.5]} 15. Kf2 {[%clk 0:02:34.1]}
15... Na5 {[%clk 0:02:45.8]} 16. Qa4 {[%clk 0:02:34.2]} 16... b5 {[%clk
0:02:43.8]} 17. Qc2 {[%clk 0:02:30.1]} 17... Rc8 {[%clk 0:02:33]} 18. Rhc1
{[%clk 0:02:28.4]} 18... Be7 {[%clk 0:02:32.7]} 19. Nd2 {[%clk 0:02:20.8]} 19...
O-O {[%clk 0:02:30.2]} 20. Qd3 {[%clk 0:02:20.3]} 20... Nc4 {[%clk 0:02:22]} 21.
Nbxc4 {[%clk 0:02:17.1]} 21... bxc4 {[%clk 0:02:22.1]} 22. Qc2 {[%clk
0:02:11.3]} 22... Rb8 {[%clk 0:02:20]} 23. Rcb1 {[%clk 0:02:10.1]} 23... f6
{[%clk 0:02:20.3]} 24. Nf3 {[%clk 0:02:03.3]} 24... fxe5 {[%clk 0:02:20.2]} 25.
fxe5 {[%clk 0:02:04.2]} 25... Rxb1 {[%clk 0:02:11.3]} 26. Rxb1 {[%clk
0:02:03.3]} 26... Qxa3 {[%clk 0:02:03.9]} 27. Rb7 {[%clk 0:01:54.7]} 27... Rd8
{[%clk 0:01:29.2]} 28. Bg5 {[%clk 0:01:22.1]} 28... Rb8 {[%clk 0:00:58.4]} 29.
Bc1 {[%clk 0:01:02.3]} 29... Rxb7 {[%clk 0:00:46.1]} 30. Bxa3 {[%clk 0:01:01.4]}
30... Bxa3 {[%clk 0:00:47]} 31. Qa4 {[%clk 0:01:02]} 31... Be7 {[%clk
0:00:24.6]} 32. Qa6 {[%clk 0:00:48]} 32... Rb2+ {[%clk 0:00:20.4]} 33. Kg3
{[%clk 0:00:47.9]} 33... Nf8 {[%clk 0:00:20]} 34. Qxa7 {[%clk 0:00:47.8]} 34...
Rb3 {[%clk 0:00:19.8]} 35. Qxe7 {[%clk 0:00:47.1]} 35... Rxc3 {[%clk 0:00:19.3]}
36. h3 {[%clk 0:00:45.3]} 36... Rd3 {[%clk 0:00:19.7]} 37. Kh2 {[%clk
0:00:45.6]} 37... c3 {[%clk 0:00:19.8]} 38. Ng5 {[%clk 0:00:46.1]} 38... c2
{[%clk 0:00:16.3]} 39. Qf7+ {[%clk 0:00:45.7]} 39... Kh8 {[%clk 0:00:16.5]} 40.
Qxf8# {[%clk 0:00:46.6]} 1-0

[Event "Early-Titled-Tuesday-Blitz-February-20-2024"]
[Site "Chess.com"]
[Date "2024.02.20"]
[Round "5"]
[White "Barmen_EV"]
[Black "tsaruk_maks"]
[Result "0-1"]
[WhiteElo "2518"]
[BlackElo "2744"]
[TimeControl "180+1"]
[EndTime "8:55:37 PST"]
[Termination "tsaruk_maks won on time"]

1. e4 {[%clk 0:03:00.9]} 1... e5 {[%clk 0:02:54.7]} 2. Nf3 {[%clk 0:03:00.2]}
2... Nc6 {[%clk 0:02:55.1]} 3. d4 {[%clk 0:03:00.5]} 3... exd4 {[%clk
0:02:54.8]} 4. Bc4 {[%clk 0:03:01.3]} 4... Nf6 {[%clk 0:02:54.6]} 5. O-O {[%clk
0:03:02]} 5... Nxe4 {[%clk 0:02:54.8]} 6. Nc3 {[%clk 0:03:02.4]} 6... dxc3
{[%clk 0:02:52.4]} 7. Bxf7+ {[%clk 0:03:02.4]} 7... Kxf7 {[%clk 0:02:48.7]} 8.
Qd5+ {[%clk 0:03:02.7]} 8... Ke8 {[%clk 0:02:43.5]} 9. Re1 {[%clk 0:03:02.7]}
9... Ne7 {[%clk 0:02:29.6]} 10. Rxe4 {[%clk 0:02:59.8]} 10... c6 {[%clk
0:02:28.6]} 11. Qd6 {[%clk 0:02:51.3]} 11... Kf7 {[%clk 0:01:45.9]} 12. Bg5
{[%clk 0:02:47.5]} 12... Ng6 {[%clk 0:01:33.6]} 13. Qd4 {[%clk 0:00:50.7]} 13...
Qb6 {[%clk 0:01:32.4]} 14. Rf4+ {[%clk 0:00:37.7]} 14... Kg8 {[%clk 0:01:26.9]}
15. Qe4 {[%clk 0:00:25.5]} 15... d5 {[%clk 0:01:21.1]} 16. Qe8 {[%clk
0:00:25.5]} 16... Nxf4 {[%clk 0:01:21.1]} 17. Be7 {[%clk 0:00:18.6]} 17... Ng6
{[%clk 0:01:10.9]} 18. Ng5 {[%clk 0:00:09.4]} 18... Be6 {[%clk 0:01:00.1]} 19.
Qxa8 {[%clk 0:00:09.7]} 19... cxb2 {[%clk 0:00:58.4]} 20. Rb1 {[%clk 0:00:10.4]}
20... Bf7 {[%clk 0:00:35.2]} 21. Bxf8 {[%clk 0:00:10.2]} 21... Nxf8 {[%clk
0:00:36.1]} 22. Qc8 {[%clk 0:00:10.2]} 22... h6 {[%clk 0:00:34.5]} 23. Nf3
{[%clk 0:00:10.5]} 23... Bg6 {[%clk 0:00:28.9]} 24. Ne1 {[%clk 0:00:02.1]} 24...
Kh7 {[%clk 0:00:27.1]} 25. Qg4 {[%clk 0:00:02]} 25... Be4 {[%clk 0:00:21.1]} 0-1

[Event "Early-Titled-Tuesday-Blitz-February-20-2024"]
[Site "Chess.com"]
[Date "2024.02.20"]
[Round "5"]
[White "Bkmzzzzz"]
[Black "AnaKuchava"]
[Result "1-0"]
[WhiteElo "2414"]
[BlackElo "2210"]
[TimeControl "180+1"]
[EndTime "8:55:39 PST"]
[Termination "Bkmzzzzz won by resignation"]

1. e4 {[%clk 0:03:00.9]} 1... c5 {[%clk 0:02:50.2]} 2. Nf3 {[%clk 0:02:59.1]}
2... d6 {[%clk 0:02:47.3]} 3. d4 {[%clk 0:02:59.4]} 3... cxd4 {[%clk 0:02:46.5]}
4. Qxd4 {[%clk 0:03:00.3]} 4... a6 {[%clk 0:02:41]} 5. Be3 {[%clk 0:02:59.5]}
5... Nc6 {[%clk 0:02:40.1]} 6. Qb6 {[%clk 0:02:59.8]} 6... Qxb6 {[%clk
0:02:38.3]} 7. Bxb6 {[%clk 0:03:00.7]} 7... Nf6 {[%clk 0:02:38]} 8. Nc3 {[%clk
0:03:00.7]} 8... Nd7 {[%clk 0:02:31.8]} 9. Na4 {[%clk 0:03:00]} 9... e6 {[%clk
0:02:21.9]} 10. O-O-O {[%clk 0:02:59.2]} 10... Be7 {[%clk 0:02:16.1]} 11. Bc7
{[%clk 0:02:37.8]} 11... b5 {[%clk 0:02:09.1]} 12. Nc3 {[%clk 0:02:33.2]} 12...
b4 {[%clk 0:01:51]} 13. Na4 {[%clk 0:02:27.8]} 13... Nc5 {[%clk 0:01:50.1]} 14.
Nb6 {[%clk 0:02:02.8]} 14... Ra7 {[%clk 0:01:40.8]} 15. Bxd6 {[%clk 0:01:53.6]}
15... Bb7 {[%clk 0:01:25.9]} 16. Bxe7 {[%clk 0:01:10.5]} 16... Kxe7 {[%clk
0:01:20.6]} 17. Bd3 {[%clk 0:01:11.2]} 17... a5 {[%clk 0:01:02.5]} 18. Nd2
{[%clk 0:00:59.9]} 18... a4 {[%clk 0:00:44.6]} 19. b3 {[%clk 0:00:49.5]} 19...
axb3 {[%clk 0:00:24.9]} 20. axb3 {[%clk 0:00:50.4]} 20... Ra2 {[%clk 0:00:20]}
21. Kb1 {[%clk 0:00:48.2]} 21... Ra7 {[%clk 0:00:12.4]} 22. f3 {[%clk
0:00:47.9]} 22... Nd7 {[%clk 0:00:10]} 23. Nxd7 {[%clk 0:00:47.3]} 23... Kxd7
{[%clk 0:00:10.9]} 24. Kb2 {[%clk 0:00:47.5]} 24... Rha8 {[%clk 0:00:09.8]} 25.
Ra1 {[%clk 0:00:48.1]} 25... Nd4 {[%clk 0:00:06.3]} 26. Nc4 {[%clk 0:00:46]}
26... Kc7 {[%clk 0:00:05.4]} 27. Rxa7 {[%clk 0:00:44.6]} 27... Rxa7 {[%clk
0:00:05.3]} 28. Rd1 {[%clk 0:00:45.2]} 28... f6 {[%clk 0:00:03.8]} 29. Ne3
{[%clk 0:00:43.9]} 29... e5 {[%clk 0:00:03.7]} 30. Bc4 {[%clk 0:00:41.3]} 30...
Kb6 {[%clk 0:00:02.5]} 31. Nf5 {[%clk 0:00:39.7]} 31... g6 {[%clk 0:00:01.9]}
32. Nxd4 {[%clk 0:00:39.7]} 32... exd4 {[%clk 0:00:01.3]} 33. Rxd4 {[%clk
0:00:40.6]} 33... Kc5 {[%clk 0:00:01.6]} 34. Rd7 {[%clk 0:00:39.9]} 34... Bc6
{[%clk 0:00:02.5]} 35. Rxa7 {[%clk 0:00:39.7]} 1-0

[Event "Early-Titled-Tuesday-Blitz-February-20-2024"]
[Site "Chess.com"]
[Date "2024.02.20"]
[Round "5"]
[White "brm72"]
[Black "tetrix83"]
[Result "0-1"]
[WhiteElo "2615"]
[BlackElo "2520"]
[TimeControl "180+1"]
[EndTime "8:55:42 PST"]
[Termination "tetrix83 won on time"]

1. e4 {[%clk 0:03:00.3]} 1... c5 {[%clk 0:02:59.3]} 2. Nf3 {[%clk 0:02:59.4]}
2... d6 {[%clk 0:02:59.4]} 3. d4 {[%clk 0:02:59.4]} 3... cxd4 {[%clk 0:03:00.3]}
4. Nxd4 {[%clk 0:03:00]} 4... Nf6 {[%clk 0:03:00.9]} 5. Nc3 {[%clk 0:02:58.8]}
5... a6 {[%clk 0:03:01.3]} 6. f3 {[%clk 0:02:59]} 6... e6 {[%clk 0:03:00.1]} 7.
Be3 {[%clk 0:02:59.4]} 7... b5 {[%clk 0:02:59.3]} 8. Qd2 {[%clk 0:02:59.6]} 8...
Nbd7 {[%clk 0:02:57.1]} 9. g4 {[%clk 0:02:56.6]} 9... Nb6 {[%clk 0:02:56.9]} 10.
h4 {[%clk 0:02:53.6]} 10... Qc7 {[%clk 0:02:46.2]} 11. O-O-O {[%clk 0:02:47.4]}
11... b4 {[%clk 0:02:44.9]} 12. Nb1 {[%clk 0:02:36.8]} 12... d5 {[%clk
0:02:43.2]} 13. g5 {[%clk 0:02:32.3]} 13... Nfd7 {[%clk 0:02:43.3]} 14. Qf2
{[%clk 0:02:17.1]} 14... Bb7 {[%clk 0:02:33.1]} 15. Nd2 {[%clk 0:02:15.2]} 15...
Rc8 {[%clk 0:02:31.5]} 16. N2b3 {[%clk 0:01:45.5]} 16... dxe4 {[%clk 0:02:29.1]}
17. fxe4 {[%clk 0:01:31.2]} 17... Bxe4 {[%clk 0:02:28.8]} 18. Bg2 {[%clk
0:01:31.8]} 18... Bxg2 {[%clk 0:02:24.7]} 19. Qxg2 {[%clk 0:01:32.7]} 19... Nc4
{[%clk 0:02:18.5]} 20. Rhe1 {[%clk 0:01:24.3]} 20... Bd6 {[%clk 0:02:17.3]} 21.
Nf5 {[%clk 0:01:10.8]} 21... Be5 {[%clk 0:02:17.3]} 22. Nfd4 {[%clk 0:00:44.3]}
22... Nxe3 {[%clk 0:02:13.9]} 23. Rxe3 {[%clk 0:00:40.6]} 23... Bf4 {[%clk
0:02:14.1]} 24. Re1 {[%clk 0:00:38.5]} 24... O-O {[%clk 0:02:04.7]} 25. Kb1
{[%clk 0:00:30.2]} 25... Bxe3 {[%clk 0:02:04.3]} 26. Rxe3 {[%clk 0:00:31.1]}
26... Qf4 {[%clk 0:02:01.8]} 27. Re4 {[%clk 0:00:27.4]} 27... Qd6 {[%clk
0:01:58.6]} 28. h5 {[%clk 0:00:19.8]} 28... e5 {[%clk 0:01:45.5]} 29. Nf5 {[%clk
0:00:18.9]} 29... Qd1+ {[%clk 0:01:45.4]} 30. Nc1 {[%clk 0:00:18.9]} 30... Nc5
{[%clk 0:01:44.9]} 31. Rc4 {[%clk 0:00:13.1]} 31... Rc7 {[%clk 0:01:17.4]} 32.
h6 {[%clk 0:00:11.9]} 32... g6 {[%clk 0:00:58.7]} 33. Ne3 {[%clk 0:00:11.7]}
33... Qd6 {[%clk 0:00:48.7]} 34. Qf2 {[%clk 0:00:10.8]} 34... f5 {[%clk
0:00:40.6]} 35. Rxb4 {[%clk 0:00:02.3]} 35... Ne4 {[%clk 0:00:38.3]} 0-1

[Event "Early-Titled-Tuesday-Blitz-February-20-2024"]
[Site "Chess.com"]
[Date "2024.02.20"]
[Round "5"]
[White "GM_Huschenbeth"]
[Black "viktorskliarov"]
[Result "1-0"]
[WhiteElo "2495"]
[BlackElo "2585"]
[TimeControl "180+1"]
[EndTime "8:55:43 PST"]
[Termination "GM_Huschenbeth won on time"]

1. e4 {[%clk 0:03:00.9]} 1... c5 {[%clk 0:02:57.7]} 2. d4 {[%clk 0:02:58.7]}
2... cxd4 {[%clk 0:02:57.1]} 3. c3 {[%clk 0:02:58.7]} 3... Nf6 {[%clk
0:02:56.6]} 4. e5 {[%clk 0:02:58.3]} 4... Nd5 {[%clk 0:02:56.8]} 5. Nf3 {[%clk
0:02:59]} 5... Nc6 {[%clk 0:02:56.4]} 6. cxd4 {[%clk 0:02:59.1]} 6... d6 {[%clk
0:02:52.2]} 7. Bc4 {[%clk 0:02:57.1]} 7... Nb6 {[%clk 0:02:51.1]} 8. Bb5 {[%clk
0:02:55.7]} 8... Bd7 {[%clk 0:02:49.8]} 9. exd6 {[%clk 0:02:50.3]} 9... e6
{[%clk 0:02:49.7]} 10. O-O {[%clk 0:02:50.4]} 10... Bxd6 {[%clk 0:02:49.2]} 11.
Nc3 {[%clk 0:02:50.6]} 11... O-O {[%clk 0:02:47]} 12. Ne4 {[%clk 0:02:46.7]}
12... Be7 {[%clk 0:02:43.2]} 13. Bf4 {[%clk 0:02:35.6]} 13... Nd5 {[%clk
0:02:36.4]} 14. Bg3 {[%clk 0:02:35.3]} 14... f5 {[%clk 0:02:04.7]} 15. Nc5
{[%clk 0:02:20.7]} 15... f4 {[%clk 0:01:40.5]} 16. Nxd7 {[%clk 0:02:05.2]} 16...
Qxd7 {[%clk 0:01:40.3]} 17. Bh4 {[%clk 0:02:05.4]} 17... Bd6 {[%clk 0:01:09]}
18. Re1 {[%clk 0:01:47.3]} 18... h6 {[%clk 0:01:05.3]} 19. Ne5 {[%clk
0:01:29.3]} 19... Bxe5 {[%clk 0:00:54.5]} 20. Rxe5 {[%clk 0:01:30.2]} 20... a6
{[%clk 0:00:50.4]} 21. Bxc6 {[%clk 0:01:25.8]} 21... Qxc6 {[%clk 0:00:36.6]} 22.
Qh5 {[%clk 0:01:15.1]} 22... Rac8 {[%clk 0:00:21.8]} 23. Rae1 {[%clk 0:01:14.1]}
23... f3 {[%clk 0:00:15.9]} 24. Bg3 {[%clk 0:01:02.3]} 24... Rf6 {[%clk
0:00:10.8]} 25. gxf3 {[%clk 0:00:44.6]} 25... Rcf8 {[%clk 0:00:10.8]} 26. Qg4
{[%clk 0:00:39]} 26... Qc2 {[%clk 0:00:05]} 27. Rxe6 {[%clk 0:00:37]} 27... Qxb2
{[%clk 0:00:05.4]} 28. Be5 {[%clk 0:00:28.8]} 28... R6f7 {[%clk 0:00:05.7]} 29.
Rg6 {[%clk 0:00:25.8]} 29... Qd2 {[%clk 0:00:01.7]} 30. Rxg7+ {[%clk 0:00:25.1]}
1-0

[Event "Early-Titled-Tuesday-Blitz-February-20-2024"]
[Site "Chess.com"]
[Date "2024.02.20"]
[Round "5"]
[White "yaguigor"]
[Black "LionTheLeon_06"]
[Result "0-1"]
[WhiteElo "2674"]
[BlackElo "2886"]
[TimeControl "180+1"]
[EndTime "8:55:44 PST"]
[Termination "LionTheLeon_06 won by resignation"]

1. e4 {[%clk 0:03:00.9]} 1... c6 {[%clk 0:03:00.5]} 2. d4 {[%clk 0:03:00.1]}
2... d5 {[%clk 0:03:01]} 3. e5 {[%clk 0:03:00.6]} 3... Bf5 {[%clk 0:03:00]} 4.
h4 {[%clk 0:03:00.8]} 4... a6 {[%clk 0:02:57.7]} 5. g4 {[%clk 0:02:57.1]} 5...
Bd7 {[%clk 0:02:57.6]} 6. h5 {[%clk 0:02:57]} 6... c5 {[%clk 0:02:57.4]} 7. c3
{[%clk 0:02:55.7]} 7... Nc6 {[%clk 0:02:55.9]} 8. Be3 {[%clk 0:02:30.4]} 8...
Rc8 {[%clk 0:02:54.5]} 9. f4 {[%clk 0:02:17.7]} 9... Nh6 {[%clk 0:02:51.2]} 10.
f5 {[%clk 0:02:15.6]} 10... e6 {[%clk 0:02:45.3]} 11. Bd3 {[%clk 0:01:59.1]}
11... Qb6 {[%clk 0:02:30]} 12. Rh2 {[%clk 0:01:53.7]} 12... cxd4 {[%clk
0:02:28.5]} 13. cxd4 {[%clk 0:01:51.3]} 13... Nxe5 {[%clk 0:02:26.4]} 14. Bxh6
{[%clk 0:01:39.9]} 14... gxh6 {[%clk 0:02:21.2]} 15. fxe6 {[%clk 0:01:30.2]}
15... Bxe6 {[%clk 0:02:11.9]} 16. Re2 {[%clk 0:01:28.8]} 16... Bg7 {[%clk
0:01:49.9]} 17. Bf5 {[%clk 0:01:07.1]} 17... O-O {[%clk 0:01:41.4]} 18. Nc3
{[%clk 0:00:55.4]} 18... Rfe8 {[%clk 0:00:43.2]} 19. Rc1 {[%clk 0:00:46.4]}
19... Nc4 {[%clk 0:00:42.3]} 20. Bxe6 {[%clk 0:00:37.2]} 20... Rxe6 {[%clk
0:00:36.9]} 21. Nf3 {[%clk 0:00:24.1]} 21... Rce8 {[%clk 0:00:34.5]} 22. Qb3
{[%clk 0:00:19.8]} 22... Rxe2+ {[%clk 0:00:32.1]} 23. Nxe2 {[%clk 0:00:20.7]}
23... Qe6 {[%clk 0:00:32.4]} 24. Rc2 {[%clk 0:00:17.1]} 24... Qxg4 {[%clk
0:00:31.4]} 25. Kf2 {[%clk 0:00:15.8]} 25... Nd6 {[%clk 0:00:15.2]} 26. Qxd5
{[%clk 0:00:14.8]} 26... Ne4+ {[%clk 0:00:15.4]} 27. Kf1 {[%clk 0:00:14.3]}
27... Qxf3+ {[%clk 0:00:15.3]} 28. Ke1 {[%clk 0:00:13.7]} 28... Qf2+ {[%clk
0:00:15.6]} 0-1